[Event "Late-Titled-Tuesday-Blitz-September-26-2023"]
[Site "Chess.com"]
[Date "2023.09.26"]
[Round "2"]
[White "jcibarra"]
[Black "Aariow"]
[Result "1-0"]
[WhiteElo "2941"]
[BlackElo "2591"]
[TimeControl "180+1"]
[EndTime "14:16:31 PDT"]
[Termination "jcibarra won by resignation"]

1. e4 {[%clk 0:03:00.9]} 1... c5 {[%clk 0:02:50.2]} 2. Nf3 {[%clk 0:03:01]} 2...
Nc6 {[%clk 0:02:50.6]} 3. Nc3 {[%clk 0:03:00.4]} 3... g6 {[%clk 0:02:51.1]} 4.
d4 {[%clk 0:03:00.7]} 4... cxd4 {[%clk 0:02:52]} 5. Nxd4 {[%clk 0:03:01.4]} 5...
Bg7 {[%clk 0:02:52.7]} 6. Be3 {[%clk 0:03:01.7]} 6... Nf6 {[%clk 0:02:53.4]} 7.
Bc4 {[%clk 0:03:02.1]} 7... O-O {[%clk 0:02:54]} 8. Bb3 {[%clk 0:03:02.7]} 8...
a5 {[%clk 0:02:54.6]} 9. O-O {[%clk 0:03:02.5]} 9... a4 {[%clk 0:02:54.3]} 10.
Nxa4 {[%clk 0:03:02.7]} 10... Nxe4 {[%clk 0:02:55]} 11. Nb5 {[%clk 0:03:03.2]}
11... d5 {[%clk 0:02:55.8]} 12. Bb6 {[%clk 0:02:59.6]} 12... Qd7 {[%clk
0:02:55.7]} 13. Qe2 {[%clk 0:02:58.8]} 13... Ne5 {[%clk 0:02:53.7]} 14. Rad1
{[%clk 0:02:55.9]} 14... e6 {[%clk 0:02:29.1]} 15. Bd4 {[%clk 0:02:55]} 15...
Ra5 {[%clk 0:01:51.3]} 16. Nbc3 {[%clk 0:02:39.2]} 16... b5 {[%clk 0:00:23]} 17.
Nb6 {[%clk 0:02:34]} 17... Qc6 {[%clk 0:00:16.9]} 18. Nxc8 {[%clk 0:02:21.5]}
18... Rxc8 {[%clk 0:00:16.9]} 19. f3 {[%clk 0:02:17.3]} 19... b4 {[%clk
0:00:02.5]} 20. fxe4 {[%clk 0:02:04.5]} 20... bxc3 {[%clk 0:00:01.7]} 21. exd5
{[%clk 0:02:04.9]} 21... exd5 {[%clk 0:00:01.7]} 22. Bxc3 {[%clk 0:01:37.2]}
22... Rc5 {[%clk 0:00:02.2]} 23. Bd4 {[%clk 0:01:26.1]} 23... Ra5 {[%clk
0:00:02]} 24. Bxe5 {[%clk 0:01:13.7]} 24... Re8 {[%clk 0:00:02]} 25. Qd2 {[%clk
0:01:08.4]} 25... Rxe5 {[%clk 0:00:02]} 26. Qxa5 {[%clk 0:01:05.6]} 1-0

[Event "Late-Titled-Tuesday-Blitz-September-26-2023"]
[Site "Chess.com"]
[Date "2023.09.26"]
[Round "2"]
[White "BlueWizzard"]
[Black "Orest_Vovk"]
[Result "1-0"]
[WhiteElo "2885"]
[BlackElo "2563"]
[TimeControl "180+1"]
[EndTime "14:16:32 PDT"]
[Termination "BlueWizzard won by resignation"]

1. d4 {[%clk 0:03:00.9]} 1... h6 {[%clk 0:02:59.3]} 2. e4 {[%clk 0:02:58.3]}
2... g5 {[%clk 0:02:59.5]} 3. h4 {[%clk 0:02:58.2]} 3... g4 {[%clk 0:02:59.6]}
4. Nc3 {[%clk 0:02:51.4]} 4... Bg7 {[%clk 0:02:58.6]} 5. Qxg4 {[%clk 0:02:45.8]}
5... Bxd4 {[%clk 0:02:56.5]} 6. Bd2 {[%clk 0:02:46.2]} 6... Nf6 {[%clk
0:02:51.8]} 7. Qf3 {[%clk 0:02:44.9]} 7... d6 {[%clk 0:02:40.9]} 8. Nge2 {[%clk
0:02:38]} 8... Bb6 {[%clk 0:02:36.9]} 9. Na4 {[%clk 0:02:36]} 9... Bg4 {[%clk
0:02:30.3]} 10. Qd3 {[%clk 0:02:33.1]} 10... Nc6 {[%clk 0:02:26.6]} 11. f3
{[%clk 0:02:29.5]} 11... Ne5 {[%clk 0:02:22.5]} 12. Qc3 {[%clk 0:02:24.5]} 12...
Bd7 {[%clk 0:02:08]} 13. b3 {[%clk 0:02:15.2]} 13... Bxa4 {[%clk 0:02:03.9]} 14.
bxa4 {[%clk 0:02:16.1]} 14... Qd7 {[%clk 0:01:56.5]} 15. Nd4 {[%clk 0:02:11]}
15... a6 {[%clk 0:01:37.9]} 16. a5 {[%clk 0:02:08.8]} 16... Bc5 {[%clk 0:01:33]}
17. Rb1 {[%clk 0:02:02.7]} 17... Qa4 {[%clk 0:01:14.7]} 18. Nb3 {[%clk
0:01:49.5]} 18... Ned7 {[%clk 0:01:00.2]} 19. Nxc5 {[%clk 0:01:28.4]} 19... Nxc5
{[%clk 0:00:59.3]} 20. Be3 {[%clk 0:01:29]} 20... Qxa2 {[%clk 0:00:47.6]} 21.
Ra1 {[%clk 0:01:21.8]} 21... Qe6 {[%clk 0:00:43.7]} 22. Bc4 {[%clk 0:01:21.2]}
22... Qd7 {[%clk 0:00:34.7]} 23. e5 {[%clk 0:01:20.8]} 23... Rg8 {[%clk
0:00:23.1]} 24. exf6 {[%clk 0:01:15.3]} 24... Rxg2 {[%clk 0:00:23.1]} 25. fxe7
{[%clk 0:01:05.6]} 25... Qxe7 {[%clk 0:00:22.7]} 26. Kf1 {[%clk 0:01:06.2]}
26... Rg8 {[%clk 0:00:17.5]} 27. Bxc5 {[%clk 0:01:05.9]} 27... O-O-O {[%clk
0:00:16.1]} 28. Bf2 {[%clk 0:01:05.5]} 28... Qf6 {[%clk 0:00:08.8]} 29. Qxf6
{[%clk 0:01:04.9]} 1-0

[Event "Late-Titled-Tuesday-Blitz-September-26-2023"]
[Site "Chess.com"]
[Date "2023.09.26"]
[Round "2"]
[White "jjbolanos"]
[Black "Chessdude1987"]
[Result "0-1"]
[WhiteElo "2104"]
[BlackElo "2434"]
[TimeControl "180+1"]
[EndTime "14:16:35 PDT"]
[Termination "Chessdude1987 won by resignation"]

1. e4 {[%clk 0:03:00.9]} 1... e6 {[%clk 0:03:00.2]} 2. d4 {[%clk 0:03:00.7]}
2... d5 {[%clk 0:02:56.2]} 3. Bd3 {[%clk 0:03:00.4]} 3... c5 {[%clk 0:02:55.1]}
4. exd5 {[%clk 0:03:00.4]} 4... exd5 {[%clk 0:02:54.8]} 5. Nf3 {[%clk
0:02:58.9]} 5... Nf6 {[%clk 0:02:53.6]} 6. O-O {[%clk 0:02:58.8]} 6... Be7
{[%clk 0:02:50.8]} 7. dxc5 {[%clk 0:02:55.9]} 7... Bg4 {[%clk 0:02:45.3]} 8. h3
{[%clk 0:02:54.3]} 8... Bh5 {[%clk 0:02:44.6]} 9. Bb5+ {[%clk 0:02:20.2]} 9...
Nc6 {[%clk 0:02:39.5]} 10. g4 {[%clk 0:02:13.9]} 10... Bg6 {[%clk 0:02:38.9]}
11. Ne5 {[%clk 0:02:12.3]} 11... O-O {[%clk 0:02:31.3]} 12. Bxc6 {[%clk
0:02:11.4]} 12... bxc6 {[%clk 0:02:31]} 13. Nxc6 {[%clk 0:02:11.5]} 13... Qc7
{[%clk 0:02:31.2]} 14. Nxe7+ {[%clk 0:02:11.7]} 14... Qxe7 {[%clk 0:02:31.4]}
15. Be3 {[%clk 0:02:07.9]} 15... Rab8 {[%clk 0:02:23.8]} 16. b3 {[%clk
0:02:02.6]} 16... d4 {[%clk 0:02:14.7]} 17. Bxd4 {[%clk 0:01:50.2]} 17... Rfd8
{[%clk 0:02:14.1]} 18. Bxf6 {[%clk 0:01:40.9]} 18... Qxf6 {[%clk 0:02:12.9]} 19.
Nd2 {[%clk 0:01:40.8]} 19... Qf4 {[%clk 0:02:00.5]} 20. Nc4 {[%clk 0:00:59.1]}
20... Rxd1 {[%clk 0:01:58.6]} 21. Raxd1 {[%clk 0:00:59.6]} 21... h5 {[%clk
0:01:46]} 22. Ne3 {[%clk 0:00:52.9]} 22... hxg4 {[%clk 0:01:40.2]} 23. hxg4
{[%clk 0:00:53]} 23... Be4 {[%clk 0:01:40]} 24. Rd7 {[%clk 0:00:17.9]} 24... Qf3
{[%clk 0:01:34.3]} 25. Kh2 {[%clk 0:00:18.1]} 25... Qf4+ {[%clk 0:01:20.6]} 26.
Kg1 {[%clk 0:00:17.8]} 26... Qh6 {[%clk 0:01:20.4]} 27. f3 {[%clk 0:00:16.8]}
27... Qxe3+ {[%clk 0:01:20.1]} 28. Kg2 {[%clk 0:00:17.4]} 28... Bc6 {[%clk
0:01:04.8]} 29. Rxa7 {[%clk 0:00:17.2]} 29... Qxc5 {[%clk 0:01:00]} 0-1

[Event "Late-Titled-Tuesday-Blitz-September-26-2023"]
[Site "Chess.com"]
[Date "2023.09.26"]
[Round "2"]
[White "bazar-wokzal"]
[Black "bylavochka"]
[Result "1-0"]
[WhiteElo "2670"]
[BlackElo "2187"]
[TimeControl "180+1"]
[EndTime "14:16:40 PDT"]
[Termination "bazar-wokzal won by checkmate"]

1. e4 {[%clk 0:03:00.9]} 1... c5 {[%clk 0:03:00.1]} 2. c3 {[%clk 0:03:00.7]}
2... Nf6 {[%clk 0:02:59.8]} 3. e5 {[%clk 0:03:00.7]} 3... Nd5 {[%clk 0:03:00.1]}
4. d4 {[%clk 0:03:00.6]} 4... cxd4 {[%clk 0:02:59.4]} 5. cxd4 {[%clk 0:03:00.5]}
5... Nc6 {[%clk 0:02:59.6]} 6. Nc3 {[%clk 0:02:58.5]} 6... Nxc3 {[%clk
0:02:57.1]} 7. bxc3 {[%clk 0:02:59.4]} 7... d5 {[%clk 0:02:57.7]} 8. Bd3 {[%clk
0:02:58.7]} 8... Qc7 {[%clk 0:02:27.3]} 9. Bd2 {[%clk 0:02:57.3]} 9... Na5
{[%clk 0:02:15.9]} 10. f4 {[%clk 0:02:56.1]} 10... Nc4 {[%clk 0:02:15.2]} 11.
Bc1 {[%clk 0:02:54.6]} 11... e6 {[%clk 0:02:04.4]} 12. Nf3 {[%clk 0:02:54]}
12... Bd7 {[%clk 0:02:04.2]} 13. O-O {[%clk 0:02:53.8]} 13... g6 {[%clk
0:01:45.6]} 14. Kh1 {[%clk 0:02:53]} 14... Be7 {[%clk 0:01:44.6]} 15. Ng5 {[%clk
0:02:49.1]} 15... h6 {[%clk 0:01:41.1]} 16. Nf3 {[%clk 0:02:42.6]} 16... O-O-O
{[%clk 0:01:27.6]} 17. a4 {[%clk 0:02:42.3]} 17... g5 {[%clk 0:01:20.1]} 18.
Bxc4 {[%clk 0:02:20]} 18... Qxc4 {[%clk 0:00:59.3]} 19. fxg5 {[%clk 0:02:18.1]}
19... hxg5 {[%clk 0:00:57]} 20. Bxg5 {[%clk 0:02:16.9]} 20... Bxg5 {[%clk
0:00:33.4]} 21. Nxg5 {[%clk 0:02:16.7]} 21... Rdg8 {[%clk 0:00:33.5]} 22. Nxf7
{[%clk 0:02:12.7]} 22... Kb8 {[%clk 0:00:20.7]} 23. Nxh8 {[%clk 0:02:11.1]}
23... Rxh8 {[%clk 0:00:21.6]} 24. Rf7 {[%clk 0:02:05.1]} 24... Be8 {[%clk
0:00:20.5]} 25. Rf6 {[%clk 0:01:57.2]} 25... Qxc3 {[%clk 0:00:20]} 26. Rb1
{[%clk 0:01:47.2]} 26... Qg3 {[%clk 0:00:15]} 27. Qg1 {[%clk 0:01:41.7]} 27...
Bg6 {[%clk 0:00:13.6]} 28. Rbf1 {[%clk 0:01:30.9]} 28... Be4 {[%clk 0:00:13.4]}
29. Rf8+ {[%clk 0:01:29.9]} 29... Kc7 {[%clk 0:00:06.6]} 30. Rxh8 {[%clk
0:01:28]} 30... Qg7 {[%clk 0:00:06.2]} 31. Rhf8 {[%clk 0:01:25.3]} 31... Kb6
{[%clk 0:00:06.1]} 32. R8f7 {[%clk 0:01:23.1]} 32... Qg5 {[%clk 0:00:06.2]} 33.
Qf2 {[%clk 0:01:19.5]} 33... Qg4 {[%clk 0:00:06]} 34. Qb2+ {[%clk 0:01:18.5]}
34... Kc6 {[%clk 0:00:02.7]} 35. Qb5# {[%clk 0:01:18]} 1-0

[Event "Late-Titled-Tuesday-Blitz-September-26-2023"]
[Site "Chess.com"]
[Date "2023.09.26"]
[Round "2"]
[White "slorovel"]
[Black "NowInChess"]
[Result "1-0"]
[WhiteElo "2472"]
[BlackElo "2248"]
[TimeControl "180+1"]
[EndTime "14:16:41 PDT"]
[Termination "slorovel won by checkmate"]

1. e4 {[%clk 0:03:00.9]} 1... e6 {[%clk 0:03:00]} 2. d4 {[%clk 0:03:00.5]} 2...
d5 {[%clk 0:03:00.9]} 3. Nd2 {[%clk 0:03:00.8]} 3... h6 {[%clk 0:02:59.5]} 4.
Ngf3 {[%clk 0:02:59.8]} 4... Nf6 {[%clk 0:02:59.8]} 5. e5 {[%clk 0:02:59.1]}
5... Nfd7 {[%clk 0:03:00.2]} 6. Bd3 {[%clk 0:02:59.7]} 6... c5 {[%clk
0:03:00.7]} 7. c3 {[%clk 0:03:00.3]} 7... Nc6 {[%clk 0:03:01.1]} 8. O-O {[%clk
0:02:59.3]} 8... g5 {[%clk 0:02:59.1]} 9. h3 {[%clk 0:02:48]} 9... h5 {[%clk
0:02:56.7]} 10. dxc5 {[%clk 0:02:45.7]} 10... Nxc5 {[%clk 0:02:48.5]} 11. Nb3
{[%clk 0:02:43.5]} 11... Nxd3 {[%clk 0:02:41.5]} 12. Qxd3 {[%clk 0:02:37.6]}
12... g4 {[%clk 0:02:37.5]} 13. Bg5 {[%clk 0:02:19.1]} 13... Be7 {[%clk
0:02:37.1]} 14. Bxe7 {[%clk 0:02:17.8]} 14... Qxe7 {[%clk 0:02:38]} 15. Nfd4
{[%clk 0:02:14.1]} 15... Nxe5 {[%clk 0:02:30]} 16. Qb5+ {[%clk 0:02:13.8]} 16...
Bd7 {[%clk 0:01:55.5]} 17. Qxb7 {[%clk 0:02:10]} 17... Rc8 {[%clk 0:01:50.4]}
18. Rfe1 {[%clk 0:02:08.4]} 18... Nc4 {[%clk 0:01:29.8]} 19. Nf5 {[%clk
0:01:49.1]} 19... Qf8 {[%clk 0:01:12.8]} 20. Qxd5 {[%clk 0:01:47.5]} 20... gxh3
{[%clk 0:01:05.5]} 21. Rad1 {[%clk 0:01:37.1]} 21... Rc7 {[%clk 0:00:43.5]} 22.
gxh3 {[%clk 0:01:20]} 22... Rg8+ {[%clk 0:00:31.4]} 23. Kh2 {[%clk 0:01:13]}
23... Rg5 {[%clk 0:00:22.7]} 24. Nd6+ {[%clk 0:01:09.6]} 24... Qxd6+ {[%clk
0:00:18.9]} 25. Qxd6 {[%clk 0:01:10.2]} 25... Nxd6 {[%clk 0:00:19]} 26. Rxd6
{[%clk 0:01:10.8]} 26... Bc6 {[%clk 0:00:17.6]} 27. Rg1 {[%clk 0:01:06.3]} 27...
Rf5 {[%clk 0:00:17]} 28. Nd4 {[%clk 0:01:02.2]} 28... Rxf2+ {[%clk 0:00:14.8]}
29. Kg3 {[%clk 0:01:02.9]} 29... Rxb2 {[%clk 0:00:06.3]} 30. Nxc6 {[%clk
0:01:01.7]} 30... Rb6 {[%clk 0:00:06.1]} 31. Rd8# {[%clk 0:01:01.3]} 1-0

[Event "Late-Titled-Tuesday-Blitz-September-26-2023"]
[Site "Chess.com"]
[Date "2023.09.26"]
[Round "2"]
[White "rychessmaster1"]
[Black "infinitegiantkiller"]
[Result "1-0"]
[WhiteElo "2723"]
[BlackElo "2444"]
[TimeControl "180+1"]
[EndTime "14:16:42 PDT"]
[Termination "rychessmaster1 won by resignation"]

1. d4 {[%clk 0:03:00.9]} 1... Nf6 {[%clk 0:02:56.5]} 2. c4 {[%clk 0:03:00.9]}
2... c5 {[%clk 0:02:57.1]} 3. d5 {[%clk 0:03:00.8]} 3... e6 {[%clk 0:02:57.5]}
4. Nc3 {[%clk 0:03:00.8]} 4... exd5 {[%clk 0:02:56.7]} 5. cxd5 {[%clk
0:03:01.7]} 5... d6 {[%clk 0:02:57.4]} 6. Nf3 {[%clk 0:03:02]} 6... g6 {[%clk
0:02:56.9]} 7. Bf4 {[%clk 0:03:02.4]} 7... Bg7 {[%clk 0:02:55.7]} 8. h3 {[%clk
0:03:01.6]} 8... O-O {[%clk 0:02:55.1]} 9. e3 {[%clk 0:03:01.8]} 9... Ne8 {[%clk
0:02:49.3]} 10. Bd3 {[%clk 0:02:54.1]} 10... a6 {[%clk 0:02:46.8]} 11. a4 {[%clk
0:02:54.2]} 11... Nd7 {[%clk 0:02:46.4]} 12. O-O {[%clk 0:02:52.7]} 12... Qe7
{[%clk 0:02:46.1]} 13. Nd2 {[%clk 0:02:52.3]} 13... Ne5 {[%clk 0:02:45.7]} 14.
Bxe5 {[%clk 0:02:52.1]} 14... Bxe5 {[%clk 0:02:46.6]} 15. Nc4 {[%clk 0:02:52.7]}
15... Bg7 {[%clk 0:02:45.7]} 16. a5 {[%clk 0:02:48.2]} 16... Bd7 {[%clk
0:02:43]} 17. Qb3 {[%clk 0:02:42.4]} 17... Rb8 {[%clk 0:02:34.3]} 18. Rae1
{[%clk 0:02:35.8]} 18... Nc7 {[%clk 0:02:25.1]} 19. Nb6 {[%clk 0:02:25.1]} 19...
Rfd8 {[%clk 0:02:15.7]} 20. e4 {[%clk 0:02:17.3]} 20... Bd4 {[%clk 0:02:03.5]}
21. Ne2 {[%clk 0:01:59.1]} 21... Nb5 {[%clk 0:01:44.7]} 22. Nxd7 {[%clk
0:01:55.1]} 22... Qxd7 {[%clk 0:01:38.2]} 23. Bxb5 {[%clk 0:01:51.9]} 23... Qxb5
{[%clk 0:01:36.8]} 24. Nxd4 {[%clk 0:01:46.9]} 24... cxd4 {[%clk 0:01:36.3]} 25.
Qxb5 {[%clk 0:01:40.7]} 25... axb5 {[%clk 0:01:37.2]} 26. Rd1 {[%clk 0:01:40.7]}
26... Rdc8 {[%clk 0:01:35.7]} 27. Rxd4 {[%clk 0:01:40.4]} 27... Rc2 {[%clk
0:01:35.9]} 28. Rb4 {[%clk 0:01:39.5]} 28... Re2 {[%clk 0:01:30.2]} 29. Rc1
{[%clk 0:01:17.5]} 29... Ra8 {[%clk 0:01:21.3]} 30. Rxb5 {[%clk 0:01:17.9]}
30... Rxe4 {[%clk 0:01:19.9]} 31. b4 {[%clk 0:01:18.6]} 31... Rd4 {[%clk
0:01:13.9]} 32. Rxb7 {[%clk 0:01:13.5]} 32... Rxd5 {[%clk 0:01:13.9]} 33. g4
{[%clk 0:01:07.9]} 33... Rd2 {[%clk 0:01:02.9]} 34. Rcc7 {[%clk 0:01:05.9]}
34... Rf8 {[%clk 0:00:59.3]} 35. a6 {[%clk 0:01:06.1]} 35... Ra2 {[%clk
0:00:58.9]} 36. a7 {[%clk 0:01:05.3]} 36... d5 {[%clk 0:00:46.3]} 37. Rb8 {[%clk
0:01:01.4]} 37... d4 {[%clk 0:00:29.3]} 38. Rxf8+ {[%clk 0:01:01.2]} 38... Kxf8
{[%clk 0:00:29.2]} 39. Rc8+ {[%clk 0:01:01.9]} 39... Kg7 {[%clk 0:00:29.4]} 40.
a8=R {[%clk 0:01:02.1]} 40... Rxa8 {[%clk 0:00:29.8]} 41. Rxa8 {[%clk 0:01:03]}
41... d3 {[%clk 0:00:30]} 42. Rd8 {[%clk 0:01:03.3]} 1-0

[Event "Late-Titled-Tuesday-Blitz-September-26-2023"]
[Site "Chess.com"]
[Date "2023.09.26"]
[Round "2"]
[White "platy3"]
[Black "Dacean99"]
[Result "1-0"]
[WhiteElo "2879"]
[BlackElo "2560"]
[TimeControl "180+1"]
[EndTime "14:16:47 PDT"]
[Termination "platy3 won by resignation"]

1. e4 {[%clk 0:03:00.9]} 1... d6 {[%clk 0:02:57.8]} 2. d4 {[%clk 0:03:00.3]}
2... Nf6 {[%clk 0:02:58.3]} 3. Nc3 {[%clk 0:03:01]} 3... g6 {[%clk 0:02:57.2]}
4. Nf3 {[%clk 0:02:57.9]} 4... Bg7 {[%clk 0:02:55.7]} 5. Be2 {[%clk 0:02:58.4]}
5... a6 {[%clk 0:02:55.9]} 6. O-O {[%clk 0:02:57.8]} 6... b5 {[%clk 0:02:56.5]}
7. e5 {[%clk 0:02:52]} 7... Nfd7 {[%clk 0:02:56.1]} 8. e6 {[%clk 0:02:49.7]}
8... fxe6 {[%clk 0:02:55.9]} 9. Ng5 {[%clk 0:02:50.2]} 9... Nb6 {[%clk
0:02:55.7]} 10. Bf3 {[%clk 0:02:48.4]} 10... c6 {[%clk 0:02:54]} 11. Re1 {[%clk
0:02:48.6]} 11... e5 {[%clk 0:02:44.7]} 12. dxe5 {[%clk 0:02:48.2]} 12... Bxe5
{[%clk 0:02:45.6]} 13. Rxe5 {[%clk 0:02:46.5]} 13... dxe5 {[%clk 0:02:41.8]} 14.
Qxd8+ {[%clk 0:02:45.6]} 14... Kxd8 {[%clk 0:02:42.7]} 15. Nf7+ {[%clk
0:02:45.9]} 15... Ke8 {[%clk 0:02:43.3]} 16. Nxh8 {[%clk 0:02:46.3]} 16... Kf8
{[%clk 0:02:40.1]} 17. Bg5 {[%clk 0:02:32.8]} 17... Bf5 {[%clk 0:02:16.4]} 18.
Rd1 {[%clk 0:02:28.4]} 18... N8d7 {[%clk 0:02:03.3]} 19. Bxc6 {[%clk 0:02:27.7]}
19... Rc8 {[%clk 0:02:03.8]} 20. Bxd7 {[%clk 0:02:23.5]} 20... Nxd7 {[%clk
0:02:04.1]} 21. Nd5 {[%clk 0:02:19.6]} 21... Rxc2 {[%clk 0:01:53.5]} 22. h4
{[%clk 0:02:01.6]} 22... Kg7 {[%clk 0:01:47.1]} 23. Nxe7 {[%clk 0:01:32.6]}
23... Be6 {[%clk 0:01:46.7]} 24. Rd6 {[%clk 0:01:31.4]} 24... Nf8 {[%clk
0:01:33.9]} 25. h5 {[%clk 0:01:25.7]} 25... gxh5 {[%clk 0:01:31.6]} 26. f4
{[%clk 0:01:08.8]} 26... exf4 {[%clk 0:01:03.9]} 27. Bxf4 {[%clk 0:01:09.7]}
27... Re2 {[%clk 0:01:03.8]} 28. Bd2 {[%clk 0:00:56.3]} 28... Kf6 {[%clk
0:00:35.8]} 29. Nc6 {[%clk 0:00:48.9]} 29... Nd7 {[%clk 0:00:17.3]} 30. Bc3+
{[%clk 0:00:48.2]} 30... Kf5 {[%clk 0:00:17.3]} 31. Nd4+ {[%clk 0:00:48]} 31...
Ke5 {[%clk 0:00:18]} 32. Rxe6+ {[%clk 0:00:48.3]} 1-0

[Event "Late-Titled-Tuesday-Blitz-September-26-2023"]
[Site "Chess.com"]
[Date "2023.09.26"]
[Round "2"]
[White "WPWPWP-2015"]
[Black "RamyresCoelho"]
[Result "1-0"]
[WhiteElo "2490"]
[BlackElo "2290"]
[TimeControl "180+1"]
[EndTime "14:16:49 PDT"]
[Termination "WPWPWP-2015 won on time"]

1. e4 {[%clk 0:03:00.9]} 1... c5 {[%clk 0:02:50.1]} 2. Nf3 {[%clk 0:03:00.8]}
2... d6 {[%clk 0:02:50.2]} 3. d4 {[%clk 0:03:00.8]} 3... cxd4 {[%clk 0:02:51.1]}
4. Nxd4 {[%clk 0:03:01.5]} 4... Nf6 {[%clk 0:02:51.1]} 5. Nc3 {[%clk 0:03:02.1]}
5... a6 {[%clk 0:02:49]} 6. Bg5 {[%clk 0:03:01.8]} 6... e6 {[%clk 0:02:47.2]} 7.
f4 {[%clk 0:03:00.9]} 7... Qb6 {[%clk 0:02:45]} 8. Nb3 {[%clk 0:02:59.3]} 8...
Be7 {[%clk 0:02:44.5]} 9. Bd3 {[%clk 0:02:57]} 9... O-O {[%clk 0:02:42.8]} 10.
Qe2 {[%clk 0:02:54]} 10... h6 {[%clk 0:02:41.5]} 11. Bh4 {[%clk 0:02:53.4]}
11... Nc6 {[%clk 0:02:41.3]} 12. Bf2 {[%clk 0:02:47.6]} 12... Qc7 {[%clk
0:02:40.9]} 13. O-O-O {[%clk 0:02:46.2]} 13... b5 {[%clk 0:02:40.4]} 14. g4
{[%clk 0:02:40.5]} 14... b4 {[%clk 0:02:39.3]} 15. Nb1 {[%clk 0:02:40.5]} 15...
Nd7 {[%clk 0:02:37.7]} 16. h4 {[%clk 0:02:37.2]} 16... a5 {[%clk 0:02:29.8]} 17.
g5 {[%clk 0:02:35.2]} 17... a4 {[%clk 0:02:28.9]} 18. gxh6 {[%clk 0:02:27.8]}
18... axb3 {[%clk 0:02:28.7]} 19. hxg7 {[%clk 0:02:26.2]} 19... Qa5 {[%clk
0:00:45.8]} 20. gxf8=Q+ {[%clk 0:02:15.2]} 20... Kxf8 {[%clk 0:00:45]} 21. axb3
{[%clk 0:02:13.1]} 21... Bf6 {[%clk 0:00:31.7]} 22. Bb5 {[%clk 0:01:43.7]} 22...
Ncb8 {[%clk 0:00:08.5]} 23. Ba4 {[%clk 0:01:38.2]} 23... Nb6 {[%clk 0:00:07.4]}
24. e5 {[%clk 0:01:25.9]} 24... Nxa4 {[%clk 0:00:02.8]} 25. exf6 {[%clk
0:01:19.9]} 25... Nd7 {[%clk 0:00:03]} 26. Bd4 {[%clk 0:01:15.5]} 26... Nac5
{[%clk 0:00:02.4]} 27. Qg2 {[%clk 0:01:09.7]} 27... Ba6 {[%clk 0:00:01.5]} 28.
Qxa8+ {[%clk 0:00:59.8]} 1-0

[Event "Late-Titled-Tuesday-Blitz-September-26-2023"]
[Site "Chess.com"]
[Date "2023.09.26"]
[Round "2"]
[White "greekplayer1"]
[Black "HackWithBlack"]
[Result "1-0"]
[WhiteElo "2706"]
[BlackElo "2376"]
[TimeControl "180+1"]
[EndTime "14:16:54 PDT"]
[Termination "greekplayer1 won by checkmate"]

1. c4 {[%clk 0:03:00.6]} 1... c6 {[%clk 0:03:00]} 2. Nc3 {[%clk 0:03:01.5]} 2...
d5 {[%clk 0:03:00.1]} 3. cxd5 {[%clk 0:03:00.1]} 3... cxd5 {[%clk 0:03:00]} 4.
d4 {[%clk 0:03:01]} 4... Nf6 {[%clk 0:02:59.4]} 5. Bf4 {[%clk 0:03:01.3]} 5...
Nc6 {[%clk 0:02:58.3]} 6. e3 {[%clk 0:03:01.7]} 6... a6 {[%clk 0:02:56.8]} 7.
Bd3 {[%clk 0:03:01.4]} 7... Bg4 {[%clk 0:02:55.6]} 8. Nge2 {[%clk 0:03:01.9]}
8... Qb6 {[%clk 0:02:39.8]} 9. h3 {[%clk 0:02:57.3]} 9... Bxe2 {[%clk
0:02:37.9]} 10. Qxe2 {[%clk 0:02:57]} 10... e6 {[%clk 0:02:37.4]} 11. O-O {[%clk
0:02:54.1]} 11... Nb4 {[%clk 0:02:36.9]} 12. Bb1 {[%clk 0:02:53.8]} 12... Bd6
{[%clk 0:02:32.9]} 13. Bg5 {[%clk 0:02:53.9]} 13... Be7 {[%clk 0:02:08.7]} 14.
a3 {[%clk 0:02:51.2]} 14... Nc6 {[%clk 0:02:08.1]} 15. Bd3 {[%clk 0:02:47.2]}
15... h6 {[%clk 0:02:07.3]} 16. Bh4 {[%clk 0:02:46.7]} 16... Nd7 {[%clk
0:01:59.7]} 17. Bxe7 {[%clk 0:02:44.2]} 17... Nxe7 {[%clk 0:01:59.6]} 18. Rad1
{[%clk 0:02:41.1]} 18... O-O {[%clk 0:01:59.2]} 19. Nb1 {[%clk 0:02:37.4]} 19...
Rfc8 {[%clk 0:01:54.4]} 20. Nc3 {[%clk 0:02:37]} 20... Nf6 {[%clk 0:01:53.9]}
21. f4 {[%clk 0:02:35.2]} 21... Rc7 {[%clk 0:01:46.7]} 22. f5 {[%clk 0:02:30]}
22... exf5 {[%clk 0:01:44.5]} 23. Bxf5 {[%clk 0:02:29.9]} 23... Nxf5 {[%clk
0:01:44.4]} 24. Rxf5 {[%clk 0:02:30.8]} 24... Qe6 {[%clk 0:01:38.5]} 25. Rdf1
{[%clk 0:02:30.9]} 25... Re8 {[%clk 0:01:33.6]} 26. R1f4 {[%clk 0:02:23.9]}
26... Qxe3+ {[%clk 0:01:28.5]} 27. Qxe3 {[%clk 0:02:23.9]} 27... Rxe3 {[%clk
0:01:29.4]} 28. Nxd5 {[%clk 0:02:21.2]} 28... Nxd5 {[%clk 0:01:27.5]} 29. Rxd5
{[%clk 0:02:22.1]} 29... Re2 {[%clk 0:01:20.2]} 30. Rd8+ {[%clk 0:02:16.7]}
30... Kh7 {[%clk 0:01:20]} 31. d5 {[%clk 0:02:14.5]} 31... Rcc2 {[%clk
0:01:12.8]} 32. Rg4 {[%clk 0:02:13.8]} 32... Red2 {[%clk 0:01:07.1]} 33. Rd7
{[%clk 0:02:12]} 33... h5 {[%clk 0:01:01.1]} 34. Rg3 {[%clk 0:02:10.6]} 34...
Kg8 {[%clk 0:00:53.9]} 35. Rd8+ {[%clk 0:02:09.7]} 35... Kh7 {[%clk 0:00:53.9]}
36. Rf8 {[%clk 0:02:10.6]} 36... Rxb2 {[%clk 0:00:21.9]} 37. Rxf7 {[%clk
0:02:06.6]} 37... Rxd5 {[%clk 0:00:21.6]} 38. Rfxg7+ {[%clk 0:02:05.1]} 38...
Kh8 {[%clk 0:00:21.7]} 39. R7g6 {[%clk 0:01:52.4]} 39... Kh7 {[%clk 0:00:20]}
40. Rg8 {[%clk 0:01:48.4]} 40... Rd3 {[%clk 0:00:14.4]} 41. R3g7+ {[%clk
0:01:42.4]} 41... Kh6 {[%clk 0:00:14.4]} 42. Kh2 {[%clk 0:01:35.4]} 42... Rxa3
{[%clk 0:00:11.6]} 43. Rg5 {[%clk 0:01:32.3]} 43... Rd3 {[%clk 0:00:08.4]} 44.
h4 {[%clk 0:01:31.8]} 44... Rbd2 {[%clk 0:00:07.7]} 45. Rh8# {[%clk 0:01:31.8]}
1-0